fUST/lending_fUST_20240514
["ID","MTS","AMOUNT","RATE_DAILY","PERIOD"]
[326949506,1715639443222,-5596.91008799,0.00018718,2]
[326949508,1715639443231,-9615.20991202,0.00018719,2]
[326949510,1715639443243,-2708.9103859,0.00018719,2]
[326949512,1715639443254,-7904.77212462,0.00018719,2]
[326949514,1715639443263,-155.63834332,0.00018723,2]
[326949517,1715639443273,-1828.0175846,0.00018825,2]
[326949518,1715639443295,-150.0,0.000189,2]
[326949519,1715639443305,-160.50871114,0.00020812,2]
[326949520,1715639443315,-9670.96462461,0.00020911,2]
[326949521,1715639443329,-2599.63463402,0.00020911,2]
[326949522,1715639443339,-409.95141786,0.00020912,2]
[326949523,1715639443348,-731.17605094,0.00020912,2]
[326949524,1715639443362,-361.92221188,0.00020912,2]
[326949525,1715639443372,-861.55431097,0.00020912,2]
[326949754,1715639446196,-852.87267206,0.00020912,2]
[326949755,1715639446207,-500.0,0.00020913,2]
[326949756,1715639446217,-500.0,0.00020913,2]
[326949757,1715639446228,-500.0,0.00020913,2]
[326949758,1715639446239,-500.0,0.00020913,2]
[326949759,1715639446249,-500.0,0.00020913,2]
[326949760,1715639446258,-324.79801824,0.00020913,2]
[326949761,1715639446268,-186.80473942,0.00020913,2]
[326949797,1715640108737,1148.14078624,0.00015,2]
[326949799,1715640200898,315.7557281,9.999e-05,2]
[326949800,1715640484219,1093.95938812,9.999e-05,2]
[326949801,1715640515158,744.1007157,9.999e-05,2]
[326949802,1715640538921,1495.0311936,9.999e-05,2]
[326949803,1715640549663,689.68866826,9.999e-05,2]
[326949832,1715640632104,-1536.38579481,0.00017067,2]
[326949833,1715640632113,-11592.88282083,0.00017163,2]
[326949834,1715640632124,-1463.51827063,0.00017163,2]
[326949837,1715640632220,-7172.49133108,0.00017163,2]
[326949839,1715640632229,-10501.84776686,0.00017166,2]
[326949841,1715640632238,-16436.0593134,0.00017167,2]
[326949842,1715640632247,-295.112965,0.00017623,2]
[326949844,1715640632256,-383.77173943,0.00017995,2]
[326949846,1715640632265,-189.74256337,0.00018192,2]
[326949848,1715640632275,-160.84640811,0.00018193,2]
[326949850,1715640632284,-169.754166,0.00019178,2]
[326949852,1715640632293,-496.0671438,0.0002071,2]
[326949854,1715640632303,-833.42845868,0.00020711,2]
[326949856,1715640632312,-12270.59925863,0.00020806,2]
[326949858,1715640632321,-500.0,0.00020807,2]
[326949860,1715640632330,-500.0,0.00020807,2]
[326949862,1715640632339,-500.0,0.00020807,2]
[326949864,1715640632348,-500.0,0.00020807,2]
[326949866,1715640632357,-364.35553635,0.00020807,2]
[326949868,1715640632366,-262.7061707,0.00020807,2]
[326949870,1715640632376,-500.0,0.00020807,2]
[326949871,1715640632385,-500.0,0.00020807,2]
[326949873,1715640632394,-455.0,0.00020807,2]
[326949875,1715640632403,-665.67444412,0.00020808,2]
[326949877,1715640632412,-521.89035678,0.00020808,2]
[326949879,1715640632421,-941.20026414,0.00020808,2]
[326949880,1715640632430,-633.8614783,0.00020808,2]
[326949881,1715640632439,-2986.58492757,0.00020808,2]
[326949882,1715640632448,-15705.76411353,0.00020808,2]
[326949884,1715640632457,-220.2060027,0.00020808,2]
[326949885,1715640632466,-309.50479234,0.00020808,2]
[326949886,1715640632476,-315.40750118,0.00020808,2]
[326949887,1715640632485,-1093.09826282,0.00020808,2]
[326949888,1715640632494,-196.23960367,0.00020808,2]
[326949889,1715640632503,-242.1504963,0.00020808,2]
[326949890,1715640632511,-492.38273767,0.00020809,2]
[326949912,1715640638402,-102.51521895,0.00020809,2]
[326949913,1715640638412,-47682.3495153,0.0002081,2]
[326949914,1715640638421,-151.0,0.0002081,2]
[326949915,1715640638430,-155.13711819,0.0002091,2]
[326949916,1715640638439,-2153.06372081,0.0002091,2]
[326949917,1715640638450,-155.17392641,0.0002091,2]
[326949918,1715640638459,-155.03329463,0.00020911,2]
[326949919,1715640638468,-5000.72720571,0.00020911,2]
[326949920,1715640638605,-20979.95322519,0.00020911,2]
[326949921,1715640638614,-32485.99377091,0.00020911,2]
[326949922,1715640638628,-1713.20340573,0.00020912,2]
[326949923,1715640638638,-163.570765,0.00023562,2]
[326949924,1715640638647,-162.183375,0.00023562,2]
[326949925,1715640638656,-160.84640808,0.00025794,2]
[326949926,1715640638667,-664.96098012,0.000263,2]
[326949927,1715640638676,-569.23384257,0.0002739,10]
[326949928,1715640638686,-160.84640808,0.00033395,2]
[326949929,1715640638696,-467.4319829,0.00034,4]
[326949930,1715640638705,-309.41212006,0.00035,4]
[326949931,1715640638715,-1331.73525103,0.00035,7]
[326949932,1715640638725,-1331.60225041,0.00035,7]
[326949933,1715640638735,-758.52,0.00035616,3]
[326949934,1715640638744,-632.1,0.00035616,3]
[326949935,1715640638753,-992.96,0.00035616,3]
[326949936,1715640638762,-827.47,0.00035616,3]
[326949937,1715640638771,-1452.52399982,0.000371,7]
[326949938,1715640638781,-1897.96554279,0.0004,4]
[326949939,1715640638790,-689.56,0.00040163,3]
[326949940,1715640638800,-34548.0394,0.00040173,30]
[326949941,1715640638809,-160.84640808,0.00040996,2]
[326949942,1715640638819,-151.0,0.00041096,7]
[326949943,1715640638828,-254.09,0.00041096,7]
[326949944,1715640638837,-9304.3854728,0.0004288,2]
[326949945,1715640638847,-646.20017423,0.00043813,2]
[326949946,1715640638856,-4450.0,0.00045205,7]
[326949947,1715640638866,-4450.0,0.00045205,7]
[326949948,1715640638875,-4450.0,0.00045205,7]
[326949949,1715640638885,-4450.0,0.00045205,7]
[326949950,1715640638894,-4450.0,0.00045205,7]
[326949951,1715640638903,-4450.0,0.00045205,7]
[326949952,1715640638912,-4450.0,0.00045205,7]
[326949953,1715640638922,-4450.0,0.00045205,7]
[326949954,1715640638931,-4450.0,0.00045205,7]
[326949955,1715640638941,-4450.0,0.00045205,7]
[326949956,1715640638950,-4450.0,0.00045205,7]
[326949957,1715640638959,-4450.0,0.00045205,7]
[326949958,1715640638969,-150.81901718,0.00046235,2]
[326949959,1715640638979,-301.63803436,0.00047012,4]
[326949960,1715640638988,-603.27606872,0.00047802,7]
[326949961,1715640638998,-938.0,0.00049455,30]
[326949962,1715640639007,-4450.0,0.00054788,7]
[326949963,1715640639017,-4450.0,0.00054788,7]
[326949964,1715640639026,-6932.80069307,0.00054789,2]
[326949965,1715640639036,-4450.0,0.00059078,120]
[326949966,1715640639045,-4450.0,0.00059078,120]
[326949967,1715640639056,-55555.0,0.00059078,120]
[326949968,1715640639066,-150.81901718,0.00069352,2]
[326949969,1715640639076,-281.19690184,0.0007,7]
[326949970,1715640639086,-7010.26,0.000802,120]
[326949971,1715640639097,-163.570765,0.00080274,120]
[326949972,1715640639107,-500.0,0.00082191,120]
[326949973,1715640639117,-154.75239617,0.00082191,120]
[326949974,1715640639127,-4870.99,0.00082191,120]
[326949975,1715640639137,-498.75187288,0.00082191,120]
[326949976,1715640639149,-1133.57,0.00082191,120]
[326949977,1715640639159,-1133.57,0.00082191,120]
[326949978,1715640639169,-1133.57,0.00082191,120]
[326949979,1715640639180,-1133.57,0.00082191,120]
[326949980,1715640639190,-1133.57,0.00082191,120]
[326949981,1715640639200,-1133.57,0.00082191,120]
[326949982,1715640639211,-1133.57,0.00082191,120]
[326949983,1715640639221,-1133.57,0.00082191,120]
[326949984,1715640639232,-1133.57,0.00082191,120]
[326949985,1715640639248,-1133.57,0.00082191,120]
[326949986,1715640639258,-1133.57,0.00082191,120]
[326949987,1715640639269,-500.0,0.00082191,120]
[326949988,1715640639279,-500.0,0.00082191,120]
[326949989,1715640639288,-500.0,0.00082191,120]
[326949990,1715640639299,-494.38245028,0.00082191,120]
[326949991,1715640639309,-800.0,0.000843,120]
[326949992,1715640639320,-891.82,0.0008438,120]
[326949993,1715640639330,-1133.57,0.00084389,120]
[326949994,1715640639340,-1133.57,0.00084389,120]
[326949995,1715640639354,-1133.57,0.00084389,120]
[326949996,1715640639364,-134981.8818326,0.0008439,120]
[326949997,1715640639374,-4450.0,0.0008439,120]
[326949998,1715640639383,-4450.0,0.0008439,120]
[326949999,1715640639393,-1133.57,0.00084399,120]
[326950000,1715640639403,-1133.57,0.00084399,120]
[326950001,1715640639485,-1133.57,0.00084399,120]
[326950002,1715640639513,-1133.57,0.00084399,120]
[326950003,1715640639523,-1133.57,0.00084399,120]
[326950004,1715640639533,-1133.57,0.00084399,120]
[326950005,1715640639542,-1133.57,0.00084399,120]
[326950006,1715640639552,-1133.57,0.00084399,120]
[326950007,1715640639561,-1133.57,0.00084399,120]
[326950008,1715640639570,-1133.78359678,0.00084399,120]
[326950009,1715640639580,-543868.20599606,0.000844,30]
[326950010,1715640639592,-262.3827165,0.000844,30]
[326950035,1715640640683,-3846.0406209,0.000844,30]
[326950319,1715640643441,-36470.52955124,0.000844,30]
[326950610,1715640646414,-413.3892865,0.00020913,2]
[326950612,1715640646424,-4668.03,0.00082191,120]
[326950614,1715640646434,-574.63,0.0008439,3]
[326950616,1715640646443,-2604.23273779,0.000844,30]
[326953323,1715641238808,-413.3892865,0.00019172,2]
[326953324,1715641238842,-383.77173943,0.00019173,2]
[326953325,1715641238874,-189.74256337,0.00019174,2]
[326953326,1715641238908,-169.629125,0.00019178,2]
[326953327,1715641238944,-1633.4672857,0.00019871,2]
[326953328,1715641267651,-1554.6679662,0.00019871,2]
[326953329,1715641267692,-187.5266905,0.00019886,2]
[326953330,1715641267735,-4457.8053433,0.0002,2]
[326953331,1715641287236,-540.0,0.0002,2]
[326953332,1715641336642,6630.644107,9.999e-05,2]
[326953395,1715641832468,-189.74256337,0.00018806,2]
[326953397,1715641832478,-215.37581827,0.00018807,2]
[326953399,1715641832488,-383.77173943,0.00018808,2]
[326953400,1715641832497,-729.5916083,0.00018816,2]
[326953403,1715641832510,-8660.85105673,0.00018816,2]
[326953405,1715641832519,-59346.92978658,0.00018817,2]
[326953407,1715641832528,-7329.03249553,0.00018819,2]
[326953408,1715641832537,-4555.08324681,0.0001882,2]
[326953412,1715641832621,-1349.90657204,0.0001882,2]
[326953414,1715641832630,-434.784647,0.00018821,2]
[326953415,1715641832640,-2776.47399063,0.0002091,2]
[326953467,1715641838678,-9494.125268,0.0002091,2]
[326953469,1715641838687,-4678.42890536,0.00020911,2]
[326953471,1715641838697,-749.22745537,0.00020912,2]
[326953473,1715641838709,-649.94494087,0.00020912,2]
[326953475,1715641838718,-68.30638691,0.00020912,2]
[326953477,1715641838730,-241.30659763,0.00020912,2]
[326953480,1715641838740,-1148.14078624,0.00020912,2]
[326953482,1715641838750,-689.68866826,0.00020912,2]
[326953483,1715641838760,-322.60777038,0.00020912,2]
[326953709,1715641843828,-147.53091715,0.00020912,2]
[326953710,1715641843838,-189.56884564,0.00020912,2]
[326953711,1715641843847,-1428.13425117,0.00020912,2]
[326953712,1715641843857,-551.13200046,0.00020912,2]
[326953713,1715641843866,-262.96419146,0.00020912,2]
[326953714,1715641843876,-1448.69849891,0.00020912,2]
[326953715,1715641843886,-409.23025382,0.00020912,2]
[326953716,1715641843897,-254.95626712,0.00020913,2]
[326953717,1715641843907,-201.554202,0.00021918,2]
[326953718,1715641843917,-166.666666,0.00021918,2]
[326953719,1715641843927,-4132.99121063,0.00022,4]
[326953720,1715641843937,-166.666666,0.00022431,2]
[326953721,1715641843947,-166.666666,0.00022944,2]
[326953722,1715641843959,-166.666666,0.00023456,2]
[326953723,1715641843968,-164.878037,0.00023562,2]
[326953724,1715641843977,-166.666666,0.00023969,2]
[326953725,1715641843986,-166.666666,0.00024482,2]
[326953726,1715641843996,-664.96098012,0.000263,2]
[326953727,1715641844006,-569.23384257,0.0002739,10]
[326953728,1715641844016,-717.94898666,0.00033298,2]
[326953729,1715641844025,-624.89744933,0.00034963,2]
[326953730,1715641844035,-620.24487247,0.00036711,2]
[326953731,1715641844045,-620.01224362,0.00038547,2]
[326953732,1715641844055,-164.878037,0.00039765,2]
[326953733,1715641844067,-1892.21741957,0.0004,4]
[326953734,1715641844077,-164.878037,0.00055969,2]
[326953735,1715641844087,-317.3,0.00065753,120]
[326953736,1715641844096,-569.37577619,0.00068658,120]
[326953737,1715641844106,-606.20713054,0.0007,7]
[326953738,1715641844116,-164.878037,0.00072172,120]
[326953739,1715641844126,-151.08,0.00077758,120]
[326953740,1715641844135,-8974.4458606,0.00082,120]
[326953741,1715641844145,-478.86,0.00082181,3]
[326953742,1715641844154,-500.0,0.00082191,120]
[326953743,1715641844164,-500.0,0.00082191,120]
[326953744,1715641844174,-500.0,0.00082191,120]
[326953745,1715641844185,-500.0,0.00082191,120]
[326953746,1715641844195,-765.05,0.00082191,120]
[326953747,1715641844205,-765.05,0.00082191,120]
[326953748,1715641844216,-12499.95,0.00082191,120]
[326953749,1715641844225,-12499.95,0.00082191,120]
[326953750,1715641844236,-500.0,0.00082191,120]
[326953751,1715641844246,-500.0,0.00082191,120]
[326953752,1715641844255,-496.80383513,0.00083555,120]
[326953753,1715641844265,-500.0,0.00083555,120]
[326953754,1715641844275,-500.0,0.00083555,120]
[326953755,1715641844285,-6932.80069307,0.00083556,4]
[326953756,1715641844295,-1000.0,0.00083614,120]
[326953757,1715641844304,-765.05,0.00083977,120]
[326953758,1715641844313,-2860.00073445,0.00083977,120]
[326953787,1715642844516,215.37581827,9.999e-05,2]
[326953835,1715643032778,-689.68866826,0.00020809,2]
[326953837,1715643032788,-189.74256337,0.0002081,2]
[326953838,1715643032798,-500.0,0.0002091,2]
[326953840,1715643032807,-169.01201784,0.0002091,2]
[326953844,1715643032918,-12270.59925863,0.0002091,2]
[326953845,1715643032930,-700.50410475,0.00020911,2]
[326953846,1715643032940,-104234.75397672,0.00020911,2]
[326953847,1715643032949,-10149.17463201,0.00020912,2]
[326953848,1715643032959,-262.4284358,0.00020912,2]
[326953849,1715643032968,-393.52476603,0.00020912,2]
[326953850,1715643032978,-15705.76411353,0.00020912,2]
[326953851,1715643032989,-20824.07265499,0.00020913,2]
[326953852,1715643032998,-163.570765,0.00023562,2]
[326953853,1715643033008,-664.96098012,0.000263,2]
[326953854,1715643033018,-569.23384257,0.0002739,10]
[326953855,1715643033027,-447.59882745,0.00032,4]
[326953856,1715643033036,-6367.02217996,0.000599,46]
[326953857,1715643033045,-897.67225726,0.000599,105]
[326953858,1715643033054,-897.6722572,0.000599,105]
[326953859,1715643033064,-897.6722572,0.000599,105]
[326953860,1715643033073,-897.6722572,0.000599,105]
[326953861,1715643033084,-897.6722572,0.000599,105]
[326953862,1715643033095,-897.6722572,0.000599,105]
[326953863,1715643033104,-897.6722572,0.00061665,111]
[326953864,1715643033113,-897.6722572,0.00068473,120]
[326953865,1715643033123,-455.50062095,0.00068658,120]
[326953866,1715643033132,-897.6722572,0.00075282,120]
[326953867,1715643033141,-28203.55028789,0.0008,61]
[326953868,1715643033151,-546.30927518,0.0008,120]
[326954072,1715643044212,-215.37581827,0.00020808,2]
[326954074,1715643044221,-1453.69072482,0.0008,120]
[326954076,1715643044230,-4571.37911473,0.0008,5]
[326954105,1715643046815,-4117.91807307,0.00020913,2]
[326954111,1715643693674,215.37581827,9.999e-05,2]
[326954156,1715644232580,-215.37581827,0.00019633,2]
[326954157,1715644232734,-94.62418173,0.00019634,2]
[326954212,1715644238709,-75.80196927,0.00019634,2]
[326954214,1715644238718,-165.69119093,0.00020809,2]
[326954216,1715644238727,-12270.59925863,0.00020905,2]
[326954218,1715644238736,-500.0,0.00020905,2]
[326954220,1715644238746,-500.0,0.00020905,2]
[326954222,1715644238755,-385.5,0.00020905,2]
[326954224,1715644238764,-500.0,0.00020905,2]
[326954226,1715644238774,-500.0,0.00020905,2]
[326954228,1715644238784,-500.0,0.00020905,2]
[326954230,1715644238793,-500.0,0.00020905,2]
[326954232,1715644238802,-500.0,0.00020905,2]
[326954235,1715644238811,-500.0,0.00020905,2]
[326954238,1715644238825,-500.0,0.00020905,2]
[326954240,1715644238834,-500.0,0.00020905,2]
[326954242,1715644238843,-500.0,0.00020905,2]
[326954244,1715644238852,-500.0,0.00020905,2]
[326954246,1715644238862,-95913.68413147,0.00020906,2]
[326954248,1715644238871,-309.91485327,0.00020909,2]
[326954250,1715644238880,-32485.99377091,0.0002091,2]
[326954252,1715644238890,-1148.14078624,0.00020911,2]
[326954254,1715644238899,-455.57765108,0.00020911,2]
[326954256,1715644238908,-663.81031729,0.00020911,2]
[326954258,1715644238918,-1713.20340573,0.00020911,2]
[326954260,1715644238927,-20224.83958463,0.00020911,2]
[326954262,1715644238935,-20188.10658028,0.00020911,2]
[326954264,1715644238945,-154.82968734,0.00020912,2]
[326954266,1715644238954,-10501.84776686,0.00020912,2]
[326954268,1715644238963,-369.33423886,0.00020913,2]
[326954270,1715644238972,-287.99480729,0.00020913,2]
[326954272,1715644238981,-201.554202,0.00021918,2]
[326954274,1715644238990,-163.108304,0.00023562,2]
[326954276,1715644238999,-164.878037,0.00023562,2]
[326954278,1715644239009,-664.96098012,0.000263,2]
[326954280,1715644239018,-165.69119093,0.00027332,2]
[326954282,1715644239029,-226.98582086,0.0002739,10]
[326954284,1715644239039,-447.59882745,0.00032,4]
[326954286,1715644239049,-165.69119093,0.00033855,2]
[326954288,1715644239059,-467.4319829,0.00034,4]
[326954290,1715644239068,-154.82968734,0.00035,4]
[326954292,1715644239078,-670.96196781,0.00035,7]
[326954294,1715644239088,-772.46,0.00035616,3]
[326954297,1715644239099,-1473.03,0.00035616,3]
[326954299,1715644239108,-1227.53,0.00035616,3]
[326954300,1715644239117,-1022.94,0.00035616,3]
[326954301,1715644239127,-1897.96554279,0.0004,4]
[326954302,1715644239136,-3953.51108998,0.00040209,15]
[326954303,1715644239145,-34548.0394,0.00040209,30]
[326954304,1715644239154,-165.69119093,0.00040377,2]
[326954305,1715644239163,-165.69119093,0.000469,2]
[326954306,1715644239172,-162.0,0.00047,90]
[326954307,1715644239181,-150.81901718,0.00047091,2]
[326954308,1715644239190,-301.63803436,0.00047883,4]
[326954309,1715644239199,-603.27606872,0.00048688,7]
[326954310,1715644239208,-164.878037,0.0006137,2]
[326954311,1715644239217,-364.40049676,0.00068658,120]
[326954312,1715644239226,-938.0,0.00068658,30]
[326954313,1715644239235,-281.19690184,0.0007,7]
[326954314,1715644239244,-150.81901718,0.00070637,2]
[326954315,1715644239253,-7010.26,0.000787,120]
[326954316,1715644239262,-9304.3854728,0.000788,2]
[326954317,1715644239271,-2542.40366106,0.00078804,60]
[326954318,1715644239280,-999.0,0.0007915,120]
[326954319,1715644239289,-994.0,0.0007915,120]
[326954320,1715644239298,-100000.0,0.000798,120]
[326954321,1715644239308,-200.18184358,0.0007984,34]
[326954322,1715644239317,-33438.73146326,0.0008,5]
[326954323,1715644239326,-163.108304,0.00080274,120]
[326954324,1715644239335,-166.49,0.00081499,30]
[326954325,1715644239345,-166.49,0.00081499,30]
[326954327,1715644239355,-166.49,0.00081499,30]
[326954329,1715644239364,-166.49,0.00081499,30]
[326954331,1715644239374,-166.49,0.00081499,30]
[326954333,1715644239384,-100000.0,0.000815,120]
[326954335,1715644239395,-2000.0,0.000818,120]
[326954337,1715644239404,-55555.0,0.000819,120]
[326954339,1715644239412,-891.82,0.0008198,30]
[326954341,1715644239421,-134981.8831816,0.0008199,120]
[326954343,1715644239430,-897.6722572,0.00082091,120]
[326954345,1715644239439,-436.32531751,0.00082191,120]
[326954347,1715644239448,-500.0,0.00082191,120]
[326954349,1715644239457,-500.0,0.00082191,120]
[326954351,1715644239466,-500.0,0.00082191,120]
[326954353,1715644239476,-500.0,0.00082191,120]
[326954355,1715644239485,-500.0,0.00082191,120]
[326954357,1715644239494,-500.0,0.00082191,120]
[326954359,1715644239503,-500.0,0.00082191,120]
[326954361,1715644239512,-500.0,0.00082191,120]
[326954363,1715644239521,-500.0,0.00082191,120]
[326954365,1715644239531,-500.0,0.00082191,120]
[326954367,1715644239541,-500.0,0.00082191,120]
[326954369,1715644239550,-500.0,0.00082191,120]
[326954371,1715644239560,-500.0,0.00082191,120]
[326954373,1715644239569,-151.0,0.00082191,31]
[326954375,1715644239579,-254.09,0.00082191,31]
[326954377,1715644239588,-151.0,0.00082191,120]
[326954379,1715644239597,-151.0,0.00082191,120]
[326954381,1715644239606,-151.0,0.00082191,120]
[326954383,1715644239616,-151.0,0.00082191,120]
[326954385,1715644239626,-151.0,0.00082191,120]
[326954387,1715644239635,-151.0,0.00082191,120]
[326954389,1715644239644,-151.0,0.00082191,120]
[326954391,1715644239653,-151.0,0.00082191,120]
[326954393,1715644239663,-500.0,0.00082191,120]
[326954394,1715644239672,-154.75239617,0.00082191,120]
[326954396,1715644239681,-500.0,0.00082191,120]
[326954398,1715644239691,-203.03637132,0.00082191,120]
[326954400,1715644239700,-500.0,0.00082191,120]
[326954403,1715644239710,-500.0,0.00082191,120]
[326954405,1715644239720,-500.0,0.00082191,120]
[326954406,1715644239730,-500.0,0.00082191,120]
[326954408,1715644239740,-500.0,0.00082191,120]
[326954410,1715644239749,-500.0,0.00082191,120]
[326954412,1715644239759,-500.0,0.00082191,120]
[326954414,1715644239768,-258.07690936,0.00082191,120]
[326954416,1715644239779,-151.0,0.00082191,120]
[326954419,1715644239789,-151.0,0.00082191,120]
[326954420,1715644239799,-151.0,0.00082191,120]
[326954422,1715644239809,-151.0,0.00082191,120]
[326954425,1715644239824,-500.0,0.00082191,120]
[326954427,1715644239833,-298.4,0.00082191,120]
[326954429,1715644239843,-500.0,0.00082191,120]
[326954431,1715644239852,-500.0,0.00082191,120]
[326954433,1715644239862,-500.0,0.00082191,120]
[326954435,1715644239872,-500.0,0.00082191,120]
[326954436,1715644239881,-500.0,0.00082191,120]
[326954438,1715644239891,-500.0,0.00082191,120]
[326954440,1715644239904,-500.0,0.00082191,120]
[326954442,1715644239914,-500.0,0.00082191,120]
[326954445,1715644239924,-500.0,0.00082191,120]
[326954447,1715644239934,-500.0,0.00082191,120]
[326954449,1715644239944,-500.0,0.00082191,120]
[326954451,1715644239953,-220.42479046,0.00082191,120]
[326954453,1715644239963,-151.0,0.00082191,120]
[326954454,1715644239972,-151.0,0.00082191,120]
[326954457,1715644239982,-151.0,0.00082191,120]
[326954459,1715644239992,-151.0,0.00082191,120]
[326954460,1715644240002,-500.0,0.00082191,120]
[326954462,1715644240013,-500.0,0.00082191,120]
[326954464,1715644240023,-500.0,0.00082191,120]
[326954466,1715644240033,-500.0,0.00082191,120]
[326954468,1715644240043,-500.0,0.00082191,120]
[326954470,1715644240053,-254.09078,0.00082191,120]
[326954472,1715644240062,-1474.16,0.00082191,120]
[326954474,1715644240072,-1474.16,0.00082191,120]
[326954476,1715644240082,-1474.16,0.00082191,120]
[326954478,1715644240091,-1474.16,0.00082191,120]
[326954480,1715644240101,-1474.16,0.00082191,120]
[326954482,1715644240110,-1474.16,0.00082191,120]
[326954484,1715644240120,-1474.16,0.00082191,120]
[326954486,1715644240131,-1474.16,0.00082191,120]
[326954489,1715644240140,-1474.16,0.00082191,120]
[326954490,1715644240150,-1474.16,0.00082191,120]
[326954493,1715644240159,-1474.16,0.00082191,120]
[326954497,1715644240169,-1474.16,0.00082191,120]
[326954500,1715644240180,-1474.16,0.00082191,120]
[326954502,1715644240190,-1474.16,0.00082191,120]
[326954505,1715644240200,-1474.16,0.00082191,120]
[326954507,1715644240210,-1474.16,0.00082191,120]
[326954509,1715644240220,-1474.16,0.00082191,120]
[326954511,1715644240230,-1474.16,0.00082191,120]
[326954513,1715644240240,-1474.16,0.00082191,120]
[326954516,1715644240250,-800.0,0.00082191,120]
[326954518,1715644240260,-800.0,0.00082191,120]
[326954519,1715644240270,-800.0,0.00082191,120]
[326954522,1715644240280,-800.0,0.00082191,120]
[326954524,1715644240290,-800.0,0.00082191,120]
[326954525,1715644240300,-800.0,0.00082191,120]
[326954527,1715644240310,-800.0,0.00082191,120]
[326954530,1715644240319,-800.0,0.00082191,120]
[326954533,1715644240329,-800.0,0.00082191,120]
[326954535,1715644240340,-800.0,0.00082191,120]
[326954537,1715644240349,-800.0,0.00082191,120]
[326954539,1715644240359,-800.0,0.00082191,120]
[326954541,1715644240369,-800.0,0.00082191,120]
[326954542,1715644240378,-800.0,0.00082191,120]
[326954544,1715644240388,-800.0,0.00082191,120]
[326954546,1715644240398,-800.0,0.00082191,120]
[326954548,1715644240408,-174.0,0.00082191,120]
[326954550,1715644240418,-500.0,0.00082191,120]
[326954553,1715644240428,-1038.75,0.00082191,120]
[326954555,1715644240437,-1038.75,0.00082191,120]
[326954557,1715644240454,-1038.75,0.00082191,120]
[326954560,1715644240466,-1038.75,0.00082191,120]
[326954562,1715644240476,-1038.75,0.00082191,120]
[326954564,1715644240486,-214.9270287,0.00082191,120]
[326954565,1715644240496,-1038.75,0.00082191,120]
[326954568,1715644240506,-1038.75,0.00082191,120]
[326954570,1715644240516,-1038.75,0.00082191,120]
[326954572,1715644240526,-1038.75,0.00082191,120]
[326954574,1715644240536,-1038.75,0.00082191,120]
[326954576,1715644240547,-1038.75,0.00082191,120]
[326954578,1715644240557,-1038.75,0.00082191,120]
[326954580,1715644240566,-1038.75,0.00082191,120]
[326954582,1715644240576,-1038.75,0.00082191,120]
[326954584,1715644240586,-1038.75,0.00082191,120]
[326954586,1715644240596,-1038.75,0.00082191,120]
[326954588,1715644240606,-1038.75,0.00082191,120]
[326954590,1715644240616,-1038.75,0.00082191,120]
[326954592,1715644240627,-1038.75,0.00082191,120]
[326954594,1715644240636,-1038.75,0.00082191,120]
[326954596,1715644240646,-1038.75,0.00082191,120]
[326954598,1715644240656,-1038.75,0.00082191,120]
[326954600,1715644240666,-1038.75,0.00082191,120]
[326954602,1715644240676,-1038.79478641,0.00082191,120]
[326954604,1715644240685,-4450.0,0.00082191,120]
[326954606,1715644240695,-4450.0,0.00082191,120]
[326954608,1715644240706,-4450.0,0.00082191,120]
[326954610,1715644240715,-4450.0,0.00082191,120]
[326954612,1715644240725,-11339.12,0.00082191,120]
[326954614,1715644240734,-11339.12,0.00082191,120]
[326954616,1715644240743,-11339.12,0.00082191,120]
[326954618,1715644240753,-11339.12,0.00082191,120]
[326954620,1715644240763,-11339.12,0.00082191,120]
[326954622,1715644240773,-4450.0,0.00082191,120]